bitfinex/quotes_ETHUSD_20220305
["timestamp","ask_amount","ask_price","bid_price","bid_amount"]
[1646469848086,0.02506439,2650.1,2649.7,0.288]
[1646469848488,0.92956496,2650.0,2649.7,0.288]
[1646469849087,0.92956496,2650.0,2649.7,0.0001]
[1646469849290,1.1961431,2649.9,2649.7,0.0001]
[1646469849488,0.00170029,2650.0,2649.7,0.0001]
[1646469850333,0.02506439,2650.1,2649.7,0.0001]
[1646469850536,0.02506439,2650.1,2649.6,1.00669035]
[1646469850537,0.00292163,2650.0,2649.6,1.00669035]
[1646469850937,0.00292163,2650.0,2649.3,3.5]
[1646469851139,0.00292163,2650.0,2649.2,0.546]
[1646469851541,0.02506439,2650.1,2649.2,0.546]
[1646469851738,0.00292147,2650.0,2649.3,3.5]
[1646469851937,0.00292147,2650.0,2649.5,1.07508997]
[1646469852742,0.02506439,2650.1,2649.6,3.5]
[1646469852938,0.00292157,2650.0,2649.6,3.5]
[1646469853138,0.00292157,2650.0,2649.5,2.00028997]
[1646469853339,0.00292157,2650.0,2649.6,3.5]
[1646469853584,0.00292157,2650.0,2649.5,3.24128997]
[1646469853782,0.00292157,2650.0,2649.5,0.546]
[1646469853980,0.02506439,2650.1,2649.5,0.546]
[1646469854184,0.0029216,2650.0,2649.5,0.546]
[1646469854381,0.0029216,2650.0,2649.9,0.02105431]
[1646469854987,0.0029216,2650.0,2649.9,1.1293488]
[1646469855187,0.02506439,2650.1,2649.9,1.6753488]
[1646469855392,0.02506439,2650.1,2649.9,2.0545488]
[1646469855588,0.02793127,2650.1,2650.0,3.5]
[1646469855789,0.02793127,2650.1,2650.0,0.546]
[1646469856191,0.02793127,2650.1,2650.0,4.046]
[1646469856392,0.02506439,2650.1,2650.0,4.98962]
[1646469856794,0.02506439,2650.1,2650.0,4.046]
[1646469857243,0.01146487,2650.8,2650.1,4.825]
[1646469857434,3.0,2651.4,2650.2,3.2]
[1646469857633,1.07709764,2651.3,2650.2,3.2]
[1646469857833,1.07709764,2651.4,2650.2,3.2]
[1646469858034,1.07709764,2651.4,2649.9,1.3178488]
[1646469858234,1.16369488,2650.9,2650.3,0.87299418]
[1646469858636,1.16369488,2650.9,2649.9,0.20955431]
[1646469859236,1.07808959,2650.8,2649.9,0.20955431]
[1646469859837,1.07808959,2650.8,2650.0,0.97009217]
[1646469860035,1.16369488,2650.9,2650.0,0.97009217]
[1646469860238,1.1653896,2650.9,2650.0,0.97009217]
[1646469860642,1.1653896,2650.9,2650.0,4.47009217]
[1646469860841,0.00169472,2650.9,2650.0,4.47009217]
[1646469861090,1.07901927,2651.3,2650.0,4.47009217]
[1646469861290,0.00169479,2650.9,2650.1,0.44784978]
[1646469861491,0.00169479,2650.9,2650.0,0.97009217]
[1646469861690,0.00169479,2650.9,2650.1,3.5]
[1646469861891,1.07975406,2650.9,2650.0,0.97009217]
[1646469862093,1.07805927,2650.8,2650.0,0.97009217]
[1646469862291,1.04026941,2651.0,2650.0,0.97009217]
[1646469862491,1.08190114,2650.9,2650.5,0.9079716]
[1646469862692,1.07898327,2650.8,2650.5,0.9079716]
[1646469862891,1.07898327,2650.8,2650.3,0.00291857]
[1646469862892,0.00291787,2650.9,2650.3,0.00291857]
[1646469863592,1.76131248,2651.4,2650.0,0.447948]
[1646469863792,0.00168911,2650.9,2650.0,0.447948]
[1646469864194,0.87185562,2650.6,2650.0,0.447948]
[1646469864393,0.87185562,2650.6,2650.2,0.02116648]
[1646469864597,4.58005208,2650.5,2650.2,0.07110989]
[1646469864838,1.08005208,2650.4,2650.2,0.07110989]
[1646469865037,3.5,2650.3,2650.2,0.07110989]
[1646469865238,1.08005208,2650.3,2650.2,0.07110989]
[1646469865436,3.5,2650.5,2650.2,0.07110989]
[1646469866643,0.87185562,2650.6,2650.2,0.07110989]
[1646469867444,0.84981462,2650.6,2650.3,0.00292139]
[1646469868042,0.03014078,2650.1,2649.7,1.18197817]
[1646469868242,0.03014078,2650.1,2649.5,0.25]
[1646469868494,0.03014078,2650.1,2649.3,1.48994]
[1646469869496,0.03014078,2650.1,2649.6,1.03680676]
[1646469869698,0.03014078,2650.1,2649.6,0.98680676]
[1646469870599,0.03014078,2650.1,2649.6,2.87426676]
[1646469870799,0.03014078,2650.1,2649.7,0.3792]
[1646469871000,0.03014078,2650.1,2650.0,1.00687888]
[1646469871601,0.03014078,2650.1,2649.7,0.546]
[1646469872242,0.03014078,2650.1,2649.9,0.00292156]
[1646469873036,0.03014078,2650.1,2650.0,1.22867966]
[1646469873439,0.03014078,2650.1,2650.0,1.60787966]
[1646469873636,0.03014078,2650.1,2650.0,2.15387966]
[1646469874037,0.03014078,2650.1,2650.0,5.65176601]
[1646469874437,0.03014078,2650.1,2650.0,4.04105966]
[1646469874638,0.03014078,2650.1,2650.0,4.22955966]
[1646469875239,0.03014078,2650.1,2650.0,4.9047154]
[1646469875447,4.55098296,2651.8,2650.0,4.9047154]
[1646469875448,0.5846315,2651.6,2650.3,4.8]
[1646469875642,3.16399957,2651.8,2650.7,0.3792]
[1646469875841,0.00676252,2651.4,2650.9,0.3792]
[1646469876091,0.00676252,2651.4,2651.2,0.3792]
[1646469876293,3.16399957,2651.8,2651.4,4.8]
[1646469876493,3.16399957,2651.8,2651.5,4.48855344]
[1646469876793,0.0387018,2652.0,2651.9,0.94296]
[1646469876992,0.0387018,2652.0,2651.9,1.48896]
[1646469877194,0.0387018,2652.0,2651.9,0.546]
[1646469877392,0.0387018,2652.0,2651.7,5.76511]
[1646469877393,0.0387018,2652.0,2651.7,3.5]
[1646469877597,0.0387018,2652.0,2651.5,0.06335344]
[1646469878021,0.0387018,2652.0,2651.2,0.546]
[1646469878294,0.020987,2652.1,2650.9,6.9765]
[1646469878492,0.95020108,2651.7,2650.9,6.9765]
[1646469878693,0.95020108,2651.7,2650.9,0.25]
[1646469878892,0.95116108,2651.7,2650.8,0.546]
[1646469879746,0.02489069,2651.6,2650.9,1.21343656]
[1646469880138,0.02489069,2651.6,2650.9,2.15681656]
[1646469880537,0.00293465,2651.5,2651.1,0.00293512]
[1646469881539,0.02489069,2651.6,2651.0,0.94337]
[1646469881740,0.00293468,2651.5,2651.1,0.00293515]
[1646469882742,0.02489069,2651.6,2650.7,1.1839]
[1646469882941,0.88887373,2651.5,2651.1,0.00293515]
[1646469883141,0.89180841,2651.5,2651.1,0.00293515]
[1646469883585,0.00293468,2651.5,2651.1,0.00293515]
[1646469883986,0.02489069,2651.6,2650.9,0.94342]
[1646469884185,0.00293468,2651.5,2651.1,0.00293515]
[1646469884483,0.86683058,2651.4,2651.1,0.00293515]
[1646469885085,0.86683058,2651.4,2650.6,3.96408141]
[1646469885485,0.86683058,2651.4,2651.1,0.00283826]
[1646469885886,0.02853782,2651.5,2651.1,0.00283826]
[1646469886290,0.02570002,2651.5,2650.9,1.88683]
[1646469886490,0.02570002,2651.5,2650.8,3.5]
[1646469886693,0.02853785,2651.5,2651.1,0.00283829]
[1646469887092,0.02853785,2651.5,2651.1,1.17652246]
[1646469887539,0.02570002,2651.5,2651.1,1.17368417]
[1646469887740,0.02853785,2651.5,2651.1,1.17652246]
[1646469887942,0.02853785,2651.5,2651.1,0.00283829]
[1646469888739,0.02853785,2651.5,2650.7,0.45244797]
[1646469888740,0.02570002,2651.5,2650.7,0.45244797]
[1646469888940,0.02841464,2651.5,2651.1,0.00271505]
[1646469889742,0.02841464,2651.5,2651.3,0.02134182]
[1646469889940,0.00862047,2651.2,2650.6,1.2159]
[1646469890143,0.00271462,2651.5,2651.1,0.00271505]
[1646469890544,1.07732905,2651.5,2651.1,0.00271505]
[1646469891193,1.14501259,2650.9,2650.4,0.45318624]
[1646469891791,1.14501259,2650.9,2650.2,0.1885]
[1646469891991,1.14501259,2650.9,2650.3,0.4532338]
[1646469892194,1.14501259,2650.9,2650.2,0.1885]
[1646469892591,3.0,2651.4,2650.5,0.00272648]
[1646469892791,1.0746992,2651.3,2650.5,0.00272648]
[1646469893492,1.0746992,2651.3,2650.3,0.4532055]
[1646469893691,1.0746992,2651.3,2650.8,0.00272636]
[1646469893892,1.23078363,2651.1,2650.8,0.00272636]
[1646469894761,1.08139726,2651.8,2650.5,3.95347925]
[1646469894762,0.69044656,2651.9,2650.6,0.45347925]
[1646469894952,0.0027256,2651.5,2650.8,0.00272634]
[1646469895150,0.0027256,2651.5,2650.8,0.45620559]
[1646469895761,2.4175,2652.2,2650.8,0.45620559]
[1646469895762,0.68163036,2651.8,2651.4,16.36]
[1646469895957,0.3774,2652.6,2651.5,4.046]
[1646469896159,0.01861108,2653.0,2652.5,0.01223953]
[1646469896354,0.01861108,2653.0,2652.6,7.43235344]
[1646469896555,0.91914308,2654.6,2652.9,6.83547214]
[1646469896757,0.95300018,2655.3,2654.4,0.91513459]
[1646469897057,0.0338571,2655.3,2654.7,4.8]
[1646469897259,0.03062498,2655.4,2654.9,6.723]
[1646469897455,21.00761261,2655.7,2655.1,0.9417177]
[1646469897655,21.00761261,2655.7,2655.2,0.546]
[1646469897856,0.0480317,2655.9,2655.2,0.546]
[1646469898156,0.0480317,2655.9,2655.4,1.88354]
[1646469898363,0.0480317,2655.9,2655.5,2.4294931]
[1646469898592,0.0480317,2655.9,2655.6,0.94174]
[1646469898795,0.0480317,2655.9,2655.7,0.546]
[1646469898995,0.0480317,2655.9,2655.4,1.88354]
[1646469898996,1.0,2655.7,2655.5,0.1882]
[1646469899194,1.0,2655.7,2655.5,0.7342]
[1646469899597,1.0,2655.7,2655.6,4.44173]
[1646469899895,1.0029434,2655.7,2655.6,4.98773]
[1646469900099,0.0480317,2655.9,2655.7,4.8]
[1646469900100,0.0334936,2655.9,2655.7,4.8]
[1646469900299,0.0334936,2655.9,2655.5,2.071693]
[1646469900300,0.0537582,2657.0,2655.8,15.669]
[1646469900495,0.0684804,2657.0,2656.1,6.823]
[1646469900701,0.0404046,2657.3,2656.2,0.546]
[1646469900702,1.0,2656.7,2656.2,0.546]
[1646469900899,0.0313811,2657.3,2656.3,0.01297135]
[1646469901096,0.0313811,2657.3,2656.9,6.823]
[1646469901097,0.04035807,2657.0,2656.9,6.823]
[1646469901296,0.04035807,2657.0,2656.9,0.546]
[1646469901495,0.04035807,2657.0,2656.5,2.82325]
[1646469901496,4.8,2656.9,2656.5,2.82325]
[1646469901698,0.04035807,2657.0,2656.0,0.1882]
[1646469901699,7.26704725,2656.8,2656.0,0.1882]
[1646469901896,7.26704725,2656.8,2655.0,1.0]
[1646469901897,5.67562282,2656.7,2655.5,0.25]
[1646469902096,3.50899286,2656.6,2655.5,0.25]
[1646469902342,3.50899286,2656.6,2654.7,6.0340805]
[1646469902343,3.0,2656.1,2654.8,0.1882]
[1646469902542,6.01078342,2656.0,2655.1,0.25]
[1646469902740,0.546,2655.9,2655.1,0.25]
[1646469902944,1.22293792,2655.5,2654.8,3.5]
[1646469903146,1.22293792,2655.5,2654.7,2.47072706]
[1646469903344,1.22293792,2655.5,2654.4,1.421]
[1646469903549,0.00096,2655.4,2654.4,0.25]
[1646469903948,1.19197592,2654.8,2654.4,0.25]
[1646469904147,1.19197592,2654.8,2654.1,0.1882]
[1646469904344,1.19293592,2654.8,2653.9,0.1882]
[1646469904746,1.19293592,2654.8,2654.5,0.00294421]
[1646469904947,1.73797592,2654.8,2654.5,0.00294421]
[1646469905346,1.92617592,2654.8,2654.5,0.00294421]
[1646469905545,1.92617592,2654.8,2653.7,0.25]
[1646469905745,6.82396,2654.7,2653.3,3.5]
[1646469905988,0.546,2654.6,2654.5,0.00294419]
[1646469906194,0.7342,2654.6,2654.5,0.00294419]
[1646469906491,5.8499147,2654.6,2654.5,0.00294419]
[1646469906692,6.3019147,2654.6,2654.5,4.419e-05]
[1646469906892,1.12608979,2654.4,2653.7,0.25]
[1646469907091,1.12608979,2654.4,2651.7,6.66625]
[1646469907092,3.0,2654.1,2653.0,3.5]
[1646469907290,0.452,2654.0,2652.6,0.25]
[1646469907490,0.45296,2654.0,2652.6,0.25]
[1646469908093,1.03322719,2653.0,2652.6,0.25]
[1646469908291,0.452,2653.0,2652.6,0.25]
[1646469908491,0.452,2653.0,2652.4,3.6882]
[1646469908492,0.452,2653.0,2652.4,3.5]
[1646469908794,0.452,2653.0,2652.3,1.18326083]
[1646469909190,0.452,2653.0,2652.7,0.9041408]
[1646469909393,0.45296,2653.0,2652.7,0.9041408]
[1646469909593,0.4617147,2653.0,2652.7,0.9041408]
[1646469909836,0.4617147,2653.0,2652.6,0.88491732]
[1646469910038,0.452,2653.0,2652.6,0.88491732]
[1646469910736,0.452,2653.0,2652.7,0.00262279]
[1646469910938,1.22298274,2652.9,2652.7,0.00262279]
[1646469911141,0.452,2652.8,2652.7,0.00262279]
[1646469911352,0.452,2652.8,2651.6,0.1884]
[1646469911353,5.1818,2652.7,2650.9,1.0]
[1646469911544,5.652,2652.5,2650.9,1.0]
[1646469911740,5.652,2652.5,2650.2,0.01221114]
[1646469911741,3.0,2652.1,2650.2,3.51221114]
[1646469911946,0.8312,2652.0,2650.3,3.6885]
[1646469912140,0.8312,2652.0,2650.3,0.1885]
[1646469912141,1.01024931,2651.3,2650.3,0.1885]
[1646469912342,1.01024931,2651.3,2650.2,3.75]
[1646469912343,0.452,2651.2,2650.2,3.75]
[1646469912947,0.452,2651.2,2650.2,4.1292]
[1646469913145,0.452,2651.2,2650.6,0.00113091]
[1646469913991,0.452,2651.2,2650.6,0.94205476]
[1646469914192,0.452,2651.2,2650.3,0.1885]
[1646469914389,0.452,2651.2,2650.8,0.00113082]
[1646469915194,1.06311452,2651.0,2650.3,0.94359]
[1646469915395,1.06311452,2651.0,2650.2,0.25]
[1646469915595,0.452,2651.2,2650.9,0.0027324]
[1646469916394,0.452,2651.2,2650.2,3.75]
[1646469916598,0.452,2651.2,2650.8,0.8838857]
[1646469916796,0.452,2651.2,2650.9,0.00278512]
[1646469917541,0.452,2651.2,2650.2,3.75]
[1646469917745,0.452,2651.2,2650.2,4.69363]
[1646469917942,0.452,2651.2,2650.9,0.00278512]
[1646469918944,0.452,2651.2,2650.6,0.96635167]
[1646469919147,0.452,2651.2,2650.9,0.00278512]
[1646469919546,0.02697649,2651.1,2650.9,0.00278512]
[1646469919748,0.94353,2652.9,2650.9,0.00278512]
[1646469919749,0.00096,2652.8,2650.9,0.00278512]
[1646469920049,0.452,2652.1,2650.8,0.25]
[1646469920248,0.452,2652.4,2650.8,0.25]
[1646469920447,1.8736924,2652.3,2651.5,1.11530744]
[1646469920648,0.452,2652.2,2650.9,0.00272754]
[1646469920847,0.1885,2652.1,2650.9,0.00272754]
[1646469921092,0.452,2652.1,2650.9,0.00272754]
[1646469921294,3.6885,2652.2,2650.8,0.25]
[1646469921498,0.1885,2652.2,2650.8,0.2478909]
[1646469921697,0.1885,2652.2,2651.3,0.95445501]
[1646469922703,1.2331924,2652.3,2651.3,0.95445501]
[1646469923099,0.94053879,2651.9,2650.9,0.94342]
[1646469923300,0.94053879,2651.9,2650.8,0.2478909]
[1646469923700,3.5,2651.8,2650.8,0.2478909]
[1646469923901,0.452,2651.7,2651.2,0.00294858]
[1646469924100,3.5,2651.6,2651.2,0.00294858]
[1646469924303,1.67237546,2651.5,2651.2,0.00294858]
[1646469924943,0.93860339,2651.0,2650.3,0.25]
[1646469926347,0.93860339,2651.0,2650.5,0.00294893]
[1646469926348,3.5,2650.9,2650.5,0.00294893]
[1646469926547,0.452,2650.8,2650.5,0.00294893]
[1646469926745,3.5,2650.7,2650.5,0.00294893]
[1646469926952,0.452,2650.6,2650.5,0.00294893]
[1646469927346,0.452,2650.6,2649.9,7.47]
[1646469927547,0.94114585,2650.1,2649.9,7.47]
[1646469928348,0.94114585,2650.1,2649.4,7.47]
[1646469928349,0.89114585,2650.1,2649.4,7.47]
[1646469928590,1.34314585,2650.1,2649.4,7.47]
[1646469928789,1.34314585,2650.1,2649.9,0.00289396]
[1646469929390,0.1885,2650.5,2649.9,0.00289396]
[1646469929594,0.1885,2650.5,2649.4,7.47]
[1646469929595,0.1885,2650.5,2649.4,10.97]
[1646469929891,0.1885,2650.5,2649.9,0.00289396]
[1646469930192,3.3577895,2651.0,2649.9,0.00289396]
[1646469930193,0.0577895,2651.0,2649.9,0.00289396]
[1646469930392,0.0577895,2651.0,2650.3,1.12810669]
[1646469930793,2.24385,2652.0,2650.4,3.5]
[1646469930794,0.452,2651.7,2650.4,3.5]
[1646469930993,4.3,2652.0,2650.4,3.8792]
[1646469930994,0.3,2652.0,2650.4,3.8792]
[1646469931195,3.0,2652.2,2650.5,0.00289364]
[1646469931394,0.87486377,2651.7,2650.9,0.95011136]
[1646469931595,0.452,2652.1,2650.9,0.95011136]
[1646469931794,0.452,2652.1,2651.0,3.5]
[1646469931995,1.0,2652.6,2651.1,0.3792]
[1646469932254,0.00096,2652.8,2651.2,3.8792]
[1646469932441,0.00096,2652.8,2651.4,0.00272285]
[1646469932640,1.07750432,2652.7,2651.9,1.21995479]
[1646469932841,0.00096,2652.8,2651.9,1.21995479]
[1646469933042,0.01353482,2653.3,2652.0,3.5]
[1646469933244,0.00096,2653.1,2652.0,3.8792]
[1646469933442,0.00096,2653.3,2652.2,0.94296]
[1646469933646,0.00096,2653.3,2652.3,3.5]
[1646469933841,0.00096,2653.3,2652.3,3.6827]
[1646469934041,1.03097006,2653.2,2652.5,1.1641667]
[1646469934742,0.00096,2653.3,2652.7,0.3792]
[1646469934947,0.00096,2653.6,2652.8,3.8792]
[1646469935142,0.00096,2654.3,2652.8,3.8792]
[1646469935342,0.78109446,2654.3,2652.8,3.8792]
[1646469935742,0.93509781,2653.7,2652.6,4.0619]
[1646469935992,0.00096,2653.6,2652.6,0.18543429]
[1646469936199,0.00096,2653.6,2652.7,3.5]
[1646469936397,0.00096,2653.6,2652.8,0.1827]
[1646469936597,0.93509781,2653.7,2652.8,0.1827]
[1646469936598,0.93605781,2653.7,2652.8,0.1827]
[1646469936799,0.93605781,2653.7,2652.8,1.08296306]
[1646469936998,0.93605781,2653.7,2652.9,3.5]
[1646469937200,0.93605781,2653.7,2652.8,1.08296306]
[1646469937398,0.93605781,2653.7,2652.9,3.5]
[1646469937602,0.93605781,2653.7,2652.8,1.08296306]
[1646469937798,0.93605781,2653.7,2652.8,1.26566306]
[1646469937999,0.93605781,2653.7,2652.7,0.1827]
[1646469938199,0.93605781,2653.7,2652.5,3.5]
[1646469938399,0.93605781,2653.7,2652.6,0.18543411]
[1646469938606,0.93605781,2653.7,2652.6,0.00273411]
[1646469939000,0.93605781,2653.7,2652.9,0.98958461]
[1646469939299,0.97107662,2653.7,2652.9,0.98958461]
[1646469939748,0.97107662,2653.7,2652.6,0.94555323]
[1646469939937,0.97107662,2653.7,2652.6,0.00273323]
[1646469940141,0.97107662,2653.7,2652.7,3.5]
[1646469940737,0.97107662,2653.7,2652.6,0.00273323]
[1646469940738,1.18974696,2653.3,2652.6,0.00273323]
[1646469940944,1.19070696,2653.3,2652.6,0.00273323]
[1646469941145,0.452,2653.2,2652.6,0.00273323]
[1646469941745,0.452,2653.2,2652.4,0.1827]
[1646469941944,1.19061522,2652.7,2652.6,0.00273308]
[1646469942142,0.00096,2653.1,2652.6,0.00273308]
[1646469942342,0.452,2653.1,2652.6,0.00273308]
[1646469942944,0.452,2653.1,2652.4,0.1827]
[1646469943142,0.452,2653.1,2652.6,0.0027331]
[1646469943342,1.13406429,2652.7,2652.6,0.0027331]
[1646469944289,1.13406429,2652.7,2652.5,0.00273303]
[1646469945294,1.13406429,2652.7,2652.4,0.1827]
[1646469945490,1.13406429,2652.7,2652.5,0.00273305]
[1646469945892,0.00096,2653.2,2652.5,0.00273305]
[1646469946098,0.00096,2653.3,2652.5,0.00273305]
[1646469946296,0.0714741,2653.6,2652.5,0.00273305]
[1646469946496,0.0714741,2653.6,2652.4,0.5619]
[1646469946698,0.0714741,2653.6,2652.5,3.8792]
[1646469946896,0.0714741,2653.6,2652.6,0.94553315]
[1646469947251,0.0714741,2653.6,2653.0,1.40693063]
[1646469947442,0.452,2654.6,2653.0,1.40693063]
[1646469947443,0.00096,2654.2,2653.1,3.8792]
[1646469947645,2.9803,2655.1,2653.1,4.8792]
[1646469947646,0.00096,2654.4,2653.1,4.8792]
[1646469947843,0.78541375,2654.7,2653.3,0.3792]
[1646469948040,0.00096,2654.6,2653.7,1.3216]
[1646469948240,1.00510577,2654.7,2653.9,0.3792]
[1646469948440,1.00510577,2654.7,2653.9,3.5]
[1646469948640,0.78647949,2654.6,2653.7,3.5]
[1646469948839,0.00096,2654.5,2653.5,0.94251]
[1646469949442,1.11416189,2654.1,2653.4,3.50486282]
[1646469949840,1.11416189,2654.1,2653.5,0.94251]
[1646469950445,1.11416189,2654.1,2653.2,0.25]
[1646469950642,0.97413951,2653.4,2653.2,0.25]
[1646469950841,0.97413951,2653.4,2652.6,0.00273366]
[1646469951108,0.97509951,2653.4,2652.6,0.00273366]
[1646469951308,0.97509951,2653.4,2652.5,3.75]
[1646469951510,0.97509951,2653.4,2652.7,1.07615377]
[1646469951715,0.97413951,2653.4,2652.8,3.5]
[1646469952306,0.97413951,2653.4,2652.8,0.94272]
[1646469952507,0.97413951,2653.4,2652.7,1.07615377]
[1646469952707,0.97413951,2653.4,2652.8,3.5]
[1646469952906,0.97413951,2653.4,2652.9,0.3792]
[1646469953110,0.97413951,2653.4,2653.0,3.5]
[1646469953111,0.22093875,2653.4,2653.0,3.5]
[1646469953706,0.22093875,2653.4,2653.2,0.95398461]
[1646469953907,0.17093875,2653.4,2653.2,0.95398461]
[1646469954107,0.12093875,2653.4,2653.2,0.95398461]
[1646469954410,0.12093875,2653.4,2653.3,3.52112732]
[1646469954608,0.12093875,2653.4,2653.3,3.90032732]
[1646469955245,0.12093875,2653.4,2653.3,3.52112732]
[1646469956243,0.12093875,2653.4,2653.3,0.02112732]
[1646469959693,0.12093875,2653.4,2653.3,3.52112732]
[1646469961499,0.12093875,2653.4,2653.3,0.02112732]
[1646469962944,0.11833275,2653.4,2653.3,0.02112732]
[1646469963646,0.11833275,2653.4,2653.3,0.97358638]
[1646469964445,0.11833275,2653.4,2653.3,4.47358638]
[1646469965244,0.11833275,2653.4,2653.3,5.41607638]
[1646469966695,0.11833275,2653.4,2653.3,1.91607638]
[1646469967895,0.11833275,2653.4,2653.3,5.41607638]
[1646469968095,0.11833275,2653.4,2653.3,6.35855928]
[1646469968296,0.11833275,2653.4,2653.3,7.35855928]
[1646469968498,0.00096,2654.6,2653.4,4.8]
[1646469968699,0.00096,2654.6,2653.7,0.94241]
[1646469968902,0.00096,2654.6,2653.8,3.5]
[1646469969097,0.37776,2654.7,2654.0,0.9422051]
[1646469969299,0.37776,2654.7,2654.6,1.23382801]
[1646469969499,0.3768,2654.7,2654.6,1.23382801]
[1646469969753,0.0190357,2655.2,2654.7,4.8]
[1646469969942,0.0190357,2655.2,2654.8,3.5]
[1646469970143,0.0190357,2655.2,2654.8,5.83584]
[1646469971146,0.0190357,2655.2,2654.8,2.33584]
[1646469971348,0.0190357,2655.2,2654.8,6.7776]
[1646469971552,0.0190357,2655.2,2654.8,2.33584]
[1646469971948,0.0190357,2655.2,2654.8,5.83584]
[1646469972152,0.0190357,2655.2,2654.8,3.952]
[1646469972348,0.0190357,2655.2,2654.8,3.5]
[1646469972551,0.0190357,2655.2,2654.5,1.08703805]
[1646469972749,1.64737601,2654.7,2654.5,1.08703805]
[1646469972951,1.64737601,2654.7,2654.5,1.0]
[1646469973148,1.64737601,2654.7,2654.1,3.75]
[1646469973348,1.64737601,2654.7,2654.1,3.5]
[1646469973593,1.64737601,2654.7,2654.3,0.93166621]
[1646469973795,1.64737601,2654.7,2654.1,3.5]
[1646469974096,1.64737601,2654.7,2653.9,1.0]
[1646469974297,1.64833601,2654.7,2653.9,1.0]
[1646469974493,1.64833601,2654.7,2653.6,1.58287373]
[1646469974694,0.77002522,2654.6,2653.6,0.06157373]
[1646469974896,1.11202548,2654.0,2653.6,0.06157373]
[1646469976097,0.00096,2654.6,2653.6,0.06157373]
[1646469976299,0.77105686,2654.6,2653.6,0.06157373]
[1646469976899,0.77105686,2654.6,2653.7,0.74829274]
[1646469977346,0.89968618,2654.3,2653.7,0.74829274]
[1646469977946,0.89968618,2654.3,2653.6,0.06157373]
[1646469978145,0.8859843,2653.9,2653.6,0.06157373]
[1646469978345,0.8859843,2653.9,2653.2,5.38496]
[1646469978544,0.00096,2654.6,2653.3,0.74897888]
[1646469978745,0.77282854,2654.6,2653.4,3.5]
[1646469979348,0.77282854,2654.6,2653.5,0.74902958]
[1646469979549,0.03630462,2654.0,2653.8,0.0279417]
[1646469982996,0.03630462,2654.0,2653.8,0.9703117]
[1646469983197,0.03630462,2654.0,2653.9,4.24864573]
[1646469984500,0.03630462,2654.0,2653.9,4.26977479]
[1646469984941,0.03369662,2654.0,2653.9,4.26977479]
[1646469985141,0.03369662,2654.0,2653.9,0.76977479]
[1646469985841,0.03369662,2654.0,2653.9,0.02112906]
[1646469988147,1.10481042,2654.0,2653.9,0.02112906]
[1646469989196,1.877925,2654.0,2653.9,0.02112906]
[1646469989392,1.877925,2654.0,2652.8,5.4087]
[1646469989393,1.877925,2654.0,2652.8,0.25]
[1646469989598,1.877925,2654.0,2652.9,0.75124278]
[1646469989599,15.30544787,2653.9,2652.9,0.75124278]
[1646469989794,15.78511458,2653.8,2652.8,0.25]
[1646469989993,4.27311458,2653.7,2652.8,0.25]
[1646469990194,1.03566437,2653.2,2652.8,0.25]
[1646469990394,1.03566437,2653.2,2652.6,0.002736]
[1646469990994,1.03566437,2653.2,2652.5,0.75125469]
[1646469991397,1.03566437,2653.2,2652.6,0.00273574]
[1646469991596,0.77487193,2653.1,2652.6,0.00273574]
[1646469992254,0.77487193,2653.1,2652.5,0.75125469]
[1646469992443,0.77487193,2653.1,2652.6,0.00273571]
[1646469993444,4.3312,2653.7,2652.5,0.75125469]
[1646469993445,3.952,2653.7,2652.5,0.75125469]
[1646469993644,3.71171539,2653.9,2652.6,0.7539904]
[1646469993645,0.77423295,2653.6,2652.6,0.7539904]
[1646469993845,0.77423295,2653.5,2652.7,0.75125469]
[1646469994045,0.03369662,2654.0,2652.8,0.75125469]
[1646469994245,0.06268985,2653.2,2652.9,0.75125469]
[1646469994446,0.06268985,2653.2,2653.0,0.75125469]
[1646469994447,0.00063775,2653.2,2653.0,0.75125469]
[1646469994646,0.00063775,2653.2,2653.1,0.75125469]
[1646469994849,0.00063775,2653.2,2652.9,0.75125469]
[1646469995847,0.00063775,2653.2,2652.9,1.69388769]
[1646469996096,0.00063775,2653.2,2653.0,0.75125469]
[1646469996695,0.00063775,2653.2,2653.1,0.75125469]
[1646469996895,0.00063775,2653.2,2652.9,0.75125469]
[1646469997097,0.00063775,2653.2,2653.0,0.75125469]
[1646469997297,0.00063775,2653.2,2653.1,0.75125469]
[1646469997696,0.00063775,2653.2,2652.9,0.75125469]
[1646469997896,0.00063775,2653.2,2653.0,0.75125469]
[1646469998097,0.00063775,2653.2,2652.9,0.75125469]
[1646469998297,0.00063775,2653.2,2653.0,0.75125469]
[1646469998697,0.00063775,2653.2,2652.7,0.1884]
[1646469998997,0.00063775,2653.2,2652.8,0.74987459]
[1646469999397,0.05565605,2653.2,2652.8,0.74987459]
[1646469999852,0.05565605,2653.2,2652.9,0.74987459]
[1646470000063,0.05565605,2653.2,2652.6,0.00273585]
[1646470000451,0.78009237,2653.4,2652.6,0.00273585]
[1646470000652,0.78009237,2653.4,2652.3,0.74987117]
[1646470000855,3.5,2653.9,2652.6,0.00273579]
[1646470001057,0.77524321,2653.8,2652.6,0.75260696]
[1646470001257,3.5,2654.1,2652.6,0.75260696]
[1646470001258,0.77524321,2653.7,2652.6,0.75260696]
[1646470001457,0.77524321,2653.6,2652.6,0.94100696]
[1646470001657,0.77524321,2654.0,2652.7,0.74987117]
[1646470001860,1.2100422,2653.4,2652.7,1.95705279]
[1646470002057,1.2100422,2653.4,2652.8,0.74987117]
[1646470003357,1.2100422,2653.4,2652.9,0.74987117]
[1646470003592,1.2100422,2653.4,2653.0,0.74987117]
[1646470003896,1.2100422,2653.4,2652.6,0.0027359]
[1646470004295,1.08279194,2652.7,2652.4,0.74982792]
[1646470004596,0.0440944,2653.4,2652.7,0.0292423]
[1646470004801,0.77516609,2653.3,2652.7,0.0292423]
[1646470005799,1.07779585,2653.1,2652.7,0.0292423]
[1646470006399,0.0440944,2653.4,2652.7,0.0292423]
[1646470006598,0.77476037,2653.3,2652.8,0.74955954]
[1646470007099,0.0440944,2653.4,2652.8,0.74955954]
[1646470008952,0.0440944,2653.4,2652.9,1.88541]
[1646470009152,0.0440944,2653.4,2653.3,1.1967361]
[1646470010656,0.0440944,2653.4,2653.3,1.94571795]
[1646470012199,0.0440944,2653.4,2653.3,0.74898185]
[1646470012697,0.0440944,2653.4,2653.1,0.74898185]